fUST/lending_fUST_20260205
["ID","MTS","AMOUNT","RATE_DAILY","PERIOD"]
[404501767,1770226505871,-5948.45,0.00056438,120]
[404501768,1770226505905,-861.03,0.00056438,120]
[404501769,1770226505937,-670.83,0.00056438,120]
[404501770,1770226505970,-500.0,0.00056438,120]
[404501771,1770226506004,-500.0,0.00056438,120]
[404501772,1770226506038,-500.0,0.00056438,120]
[404501773,1770226506073,-421.45812469,0.00056438,120]
[404501774,1770226506107,-500.0,0.00056438,120]
[404501775,1770226506143,-12762.41,0.00056438,90]
[404501776,1770226506179,-857.3,0.00056438,120]
[404501777,1770226506214,-1746.55,0.00056438,120]
[404501778,1770226506249,-278.32799109,0.00056987,30]
[404501779,1770226506283,-500.0,0.00057,120]
[404501780,1770226506316,-582.75754789,0.0005726,120]
[404501781,1770226506356,-500.0,0.0005726,120]
[404501782,1770226506391,-538.9032693,0.0005726,120]
[404501783,1770226506426,-755.5,0.0005726,120]
[404501784,1770226506463,-798.61,0.0005726,120]
[404501785,1770226506499,-154.72721115,0.0005726,120]
[404501786,1770226506532,-500.0,0.0005726,120]
[404501787,1770226506565,-513.6191975,0.0005726,120]
[404501788,1770226506600,-500.0,0.0005726,120]
[404501789,1770226506632,-500.0,0.0005726,120]
[404501790,1770226506665,-200.0,0.0005726,120]
[404501791,1770226506698,-500.0,0.0005726,120]
[404501792,1770226506731,-580.49,0.0005726,120]
[404501793,1770226506769,-844.68,0.0005726,120]
[404501794,1770226506806,-500.0,0.0005726,120]
[404501795,1770226506848,-500.0,0.0005726,120]
[404501796,1770226506885,-295.53398717,0.0005726,30]
[404501797,1770226506920,-500.0,0.0005726,120]
[404501798,1770226506953,-500.0,0.0005726,55]
[404501799,1770226506986,-635.12700927,0.0005726,120]
[404501800,1770226507023,-527.45443158,0.0005726,120]
[404501801,1770226507059,-500.0,0.0005726,120]
[404501802,1770226507096,-500.0,0.0005726,120]
[404501803,1770226507129,-1306.45,0.0005726,30]
[404501804,1770226507163,-943.85,0.0005726,120]
[404501805,1770226507196,-500.0,0.0005726,120]
[404501806,1770226507230,-500.0,0.0005726,120]
[404501807,1770226507268,-646.66,0.0005726,120]
[404501808,1770226507305,-500.0,0.0005726,120]
[404501809,1770226507342,-3071.68,0.0005726,120]
[404501810,1770226507380,-1992.44,0.0005726,120]
[404501811,1770226507416,-500.0,0.0005726,120]
[404501812,1770226507454,-500.0,0.0005726,120]
[404501813,1770226507495,-537.14,0.0005726,120]
[404501814,1770226507535,-500.0,0.0005726,120]
[404501815,1770226507575,-500.0,0.0005726,120]
[404501816,1770226507616,-2360.49,0.0005726,120]
[404501817,1770226507654,-500.0,0.0005726,120]
[404501818,1770226507690,-500.0,0.0005726,120]
[404501819,1770226507725,-1399.55,0.0005726,120]
[404501820,1770226507763,-500.0,0.0005726,120]
[404501821,1770226507798,-704.04,0.0005726,120]
[404501822,1770226507831,-500.0,0.0005726,120]
[404501823,1770226507870,-560.79,0.0005726,120]
[404501824,1770226507904,-746.61,0.0005726,120]
[404501825,1770226507942,-1400.35,0.0005726,120]
[404501826,1770226507977,-500.0,0.0005726,120]
[404501827,1770226508017,-5948.45,0.0005726,120]
[404501828,1770226508054,-861.03,0.0005726,120]
[404501829,1770226508096,-670.83,0.0005726,120]
[404501830,1770226508249,-500.0,0.0005726,120]
[404501831,1770226508289,-500.0,0.0005726,120]
[404501832,1770226508330,-500.0,0.0005726,120]
[404501833,1770226508381,-500.0,0.0005726,120]
[404501834,1770226508426,-12762.41,0.0005726,90]
[404501835,1770226508475,-857.3,0.0005726,120]
[404501836,1770226508520,-1746.55,0.0005726,120]
[404501837,1770226508563,-50000.0,0.0005735,120]
[404501838,1770226508611,-50000.0,0.0005745,120]
[404501839,1770226508662,-50000.0,0.0005755,120]
[404501840,1770226508712,-7029.82894295,0.00057557,30]
[404501841,1770226508762,-7029.82894295,0.00057557,30]
[404501842,1770226508813,-200.0,0.00057829,120]
[404501843,1770226508864,-152.0,0.000579,120]
[404501844,1770226508909,-219.54342631,0.00058,90]
[404501845,1770226508955,-207444.1995513,0.00058,120]
[404501846,1770226509003,-209.64860752,0.00058,120]
[404501847,1770226509055,-456.36542591,0.00058082,120]
[404501848,1770226509105,-755.5,0.00058082,120]
[404501849,1770226509154,-798.61,0.00058082,120]
[404501850,1770226509199,-625.09987688,0.00058082,120]
[404501851,1770226509242,-500.0,0.00058082,120]
[404501852,1770226509283,-500.0,0.00058082,120]
[404501853,1770226509326,-200.0,0.00058082,120]
[404501854,1770226509366,-500.0,0.00058082,120]
[404501855,1770226509414,-580.49,0.00058082,120]
[404501856,1770226509463,-844.68,0.00058082,120]
[404501857,1770226509508,-498.17244468,0.00058082,120]
[404501858,1770226509552,-500.0,0.00058082,120]
[404501859,1770226509600,-500.0,0.00058082,120]
[404501860,1770226509649,-500.0,0.00058082,55]
[404501861,1770226509699,-500.0,0.00058082,120]
[404501862,1770226509750,-500.0,0.00058082,120]
[404501863,1770226509800,-1306.45,0.00058082,30]
[404501864,1770226509854,-943.85,0.00058082,120]
[404501865,1770226509901,-500.0,0.00058082,120]
[404501866,1770226509949,-500.0,0.00058082,120]
[404501867,1770226510000,-646.66,0.00058082,120]
[404501868,1770226510052,-500.0,0.00058082,120]
[404501869,1770226510102,-3071.68,0.00058082,120]
[404501870,1770226510146,-1992.44,0.00058082,120]
[404501871,1770226510191,-500.0,0.00058082,120]
[404501872,1770226510235,-500.0,0.00058082,120]
[404501873,1770226510287,-537.14,0.00058082,120]
[404501874,1770226510332,-500.0,0.00058082,120]
[404501875,1770226510381,-500.0,0.00058082,120]
[404501876,1770226510426,-2360.49,0.00058082,120]
[404501877,1770226510469,-500.0,0.00058082,120]
[404501878,1770226510512,-254.52108839,0.00058082,120]
[404501879,1770226510555,-1399.55,0.00058082,120]
[404501880,1770226510601,-500.0,0.00058082,120]
[404501881,1770226510643,-704.04,0.00058082,120]
[404501882,1770226510684,-500.0,0.00058082,120]
[404501883,1770226510725,-560.79,0.00058082,120]
[404501884,1770226510768,-746.61,0.00058082,120]
[404501885,1770226510808,-1400.35,0.00058082,120]
[404501886,1770226510849,-500.0,0.00058082,120]
[404501887,1770226510890,-5948.45,0.00058082,120]
[404501888,1770226510930,-861.03,0.00058082,120]
[404501889,1770226510970,-670.83,0.00058082,120]
[404501890,1770226511012,-500.0,0.00058082,120]
[404501891,1770226511051,-500.0,0.00058082,120]
[404501892,1770226511089,-500.0,0.00058082,120]
[404501893,1770226511132,-500.0,0.00058082,120]
[404501894,1770226511172,-12762.41,0.00058082,90]
[404501895,1770226511212,-857.3,0.00058082,120]
[404501896,1770226511252,-1746.55,0.00058082,120]
[404501897,1770226511289,-50000.0,0.000582,120]
[404501898,1770226511327,-1490.17903114,0.00058363,120]
[404501899,1770226511368,-565.99163167,0.00058461,120]
[404501900,1770226511406,-166.25,0.000585,30]
[404501901,1770226511445,-755.5,0.00058904,120]
[404501902,1770226511483,-798.61,0.00058904,120]
[404501903,1770226511522,-500.0,0.00058904,120]
[404501904,1770226511559,-200.0,0.00058904,120]
[404501905,1770226511596,-358.58685424,0.00058904,120]
[404501906,1770226511632,-580.49,0.00058904,120]
[404501907,1770226511669,-844.68,0.00058904,120]
[404501908,1770226511706,-500.0,0.00058904,120]
[404501909,1770226511743,-283.06131292,0.00058904,120]
[404501910,1770226511780,-500.0,0.00058904,55]
[404501911,1770226511816,-500.0,0.00058904,120]
[404501912,1770226511853,-500.0,0.00058904,120]
[404501913,1770226511888,-1306.45,0.00058904,30]
[404501914,1770226511923,-943.85,0.00058904,120]
[404501915,1770226512061,-500.0,0.00058904,120]
[404501916,1770226512100,-518.34451197,0.00058904,120]
[404501917,1770226512134,-646.66,0.00058904,120]
[404501918,1770226512168,-500.0,0.00058904,120]
[404501919,1770226512203,-3071.68,0.00058904,120]
[404501920,1770226512237,-1992.44,0.00058904,120]
[404501921,1770226512271,-500.0,0.00058904,120]
[404501922,1770226512304,-500.0,0.00058904,120]
[404501923,1770226512342,-537.14,0.00058904,120]
[404501924,1770226512384,-500.0,0.00058904,120]
[404501925,1770226512422,-500.0,0.00058904,120]
[404501926,1770226512459,-2360.49,0.00058904,120]
[404501927,1770226512495,-500.0,0.00058904,120]
[404501928,1770226512530,-1399.55,0.00058904,120]
[404501929,1770226512563,-500.0,0.00058904,120]
[404501930,1770226512600,-704.04,0.00058904,120]
[404501931,1770226512634,-500.0,0.00058904,120]
[404501932,1770226512669,-560.79,0.00058904,120]
[404501933,1770226512702,-746.61,0.00058904,120]
[404501934,1770226512739,-1400.35,0.00058904,120]
[404501935,1770226512778,-500.0,0.00058904,120]
[404501936,1770226512815,-5948.45,0.00058904,120]
[404501937,1770226512852,-861.03,0.00058904,120]
[404501938,1770226512887,-670.83,0.00058904,120]
[404501939,1770226512922,-537.28536281,0.00058904,120]
[404501940,1770226512957,-500.0,0.00058904,120]
[404501941,1770226512991,-500.0,0.00058904,120]
[404501942,1770226513026,-500.0,0.00058904,120]
[404501943,1770226513060,-8222.98509184,0.00058904,90]
[404501946,1770226519974,500.0,0.00039696,120]
[404501947,1770226526147,-201.81643,0.00024922,30]
[404501948,1770226526196,-302.724646,0.00033229,60]
[404501949,1770226526240,-150.0,0.00038967,30]
[404501950,1770226526287,-166.0,0.00049315,30]
[404501951,1770226526330,-302.724646,0.00049844,60]
[404501952,1770226526378,-566.62,0.00054794,120]
[404501953,1770226526428,-151.0,0.00055615,120]
[404501954,1770226526476,-151.0,0.00055615,120]
[404501955,1770226526523,-151.0,0.00055615,120]
[404501956,1770226526570,-151.0,0.00055615,120]
[404501957,1770226526618,-151.0,0.00055615,120]
[404501958,1770226526660,-500.0,0.00055615,120]
[404501959,1770226526702,-250.0,0.00055615,120]
[404501960,1770226526743,-151.0,0.00055615,120]
[404501961,1770226526786,-151.0,0.00055615,120]
[404501962,1770226526827,-500.0,0.00055615,120]
[404501963,1770226526871,-151.0,0.00055615,120]
[404501964,1770226526913,-250.0,0.00055615,120]
[404501965,1770226526958,-151.0,0.00055615,120]
[404501966,1770226527001,-216.30290029,0.00055615,120]
[404501967,1770226527045,-500.0,0.00055615,120]
[404501968,1770226527093,-156.587,0.00055615,120]
[404501969,1770226527145,-250.0,0.00055615,120]
[404501970,1770226527190,-151.0,0.00055615,120]
[404501971,1770226527238,-500.0,0.00055615,120]
[404501972,1770226527289,-162.380719,0.00055615,120]
[404501973,1770226527337,-250.0,0.00055615,120]
[404501974,1770226527388,-500.0,0.00055615,120]
[404501975,1770226527431,-192.0,0.00055615,120]
[404501976,1770226527476,-500.0,0.00055615,120]
[404501977,1770226527520,-1918.94576445,0.00055615,30]
[404501978,1770226527564,-168.3888056,0.00055615,120]
[404501979,1770226527607,-250.0,0.00055615,120]
[404501980,1770226527653,-1000.0,0.00055615,120]
[404501981,1770226527695,-250.0,0.00055615,120]
[404501982,1770226527738,-500.0,0.00055615,120]
[404501983,1770226527785,-1500.0,0.00055615,120]
[404501984,1770226527842,-500.0,0.00055615,120]
[404501985,1770226527892,-174.61919141,0.00055615,120]
[404501986,1770226527938,-250.0,0.00055615,120]
[404501987,1770226527987,-1000.0,0.00055615,120]
[404501988,1770226528035,-250.0,0.00055615,120]
[404501989,1770226528087,-500.0,0.00055615,120]
[404501990,1770226528136,-617.52247055,0.00055615,120]
[404501991,1770226528187,-500.0,0.00055615,120]
[404501992,1770226528231,-181.08010149,0.00055615,120]
[404501993,1770226528275,-250.0,0.00055615,120]
[404501994,1770226528323,-1000.0,0.00055615,120]
[404501995,1770226528473,-250.0,0.00055615,120]
[404501996,1770226528517,-500.0,0.00055615,120]
[404501997,1770226528560,-500.0,0.00055615,120]
[404501998,1770226528605,-187.78006525,0.00055615,120]
[404501999,1770226528653,-250.0,0.00055615,120]
[404502000,1770226528696,-1000.0,0.00055615,120]
[404502001,1770226528739,-500.0,0.00055615,120]
[404502002,1770226528781,-250.0,0.00055615,120]
[404502003,1770226528823,-500.0,0.00055615,120]
[404502004,1770226528868,-500.0,0.00055615,120]
[404502005,1770226528912,-194.72792766,0.00055615,120]
[404502006,1770226528955,-250.0,0.00055615,120]
[404502007,1770226528997,-500.0,0.00055615,120]
[404502008,1770226529039,-1000.0,0.00055615,120]
[404502009,1770226529082,-250.0,0.00055615,120]
[404502010,1770226529126,-500.0,0.00055615,120]
[404502011,1770226529171,-250.0,0.00055615,120]
[404502012,1770226529221,-201.932861,0.00055615,120]
[404502013,1770226529269,-1000.0,0.00055615,120]
[404502014,1770226529316,-500.0,0.00055615,120]
[404502015,1770226529361,-250.0,0.00055615,120]
[404502016,1770226529405,-500.0,0.00055615,120]
[404502017,1770226529451,-250.0,0.00055615,120]
[404502018,1770226529498,-1000.0,0.00055615,120]
[404502019,1770226529545,-500.0,0.00055615,120]
[404502020,1770226529590,-250.0,0.00055615,120]
[404502021,1770226529635,-500.0,0.00055615,120]
[404502022,1770226529679,-250.0,0.00055615,120]
[404502023,1770226529722,-1000.0,0.00055615,120]
[404502024,1770226529772,-500.0,0.00055615,120]
[404502025,1770226529821,-250.0,0.00055615,120]
[404502026,1770226529871,-500.0,0.00055615,120]
[404502027,1770226529918,-250.0,0.00055615,120]
[404502028,1770226529967,-500.0,0.00055615,120]
[404502029,1770226530017,-250.0,0.00055615,120]
[404502030,1770226530070,-500.0,0.00055615,120]
[404502031,1770226530117,-250.0,0.00055615,120]
[404502032,1770226530166,-1000.0,0.00055615,120]
[404502033,1770226530218,-500.0,0.00055615,120]
[404502034,1770226530271,-250.0,0.00055615,120]
[404502035,1770226530321,-500.0,0.00055615,120]
[404502036,1770226530370,-500.0,0.00055615,120]
[404502037,1770226530419,-250.0,0.00055615,120]
[404502038,1770226530470,-250.0,0.00055615,120]
[404502039,1770226530521,-500.0,0.00055615,120]
[404502040,1770226530571,-500.0,0.00055615,120]
[404502041,1770226530620,-250.0,0.00055615,120]
[404502042,1770226530668,-2000.0,0.00055615,30]
[404502043,1770226530717,-500.0,0.00055615,120]
[404502044,1770226530767,-250.0,0.00055615,120]
[404502045,1770226530817,-2074.0,0.00055615,30]
[404502046,1770226530869,-250.0,0.00055615,120]
[404502047,1770226530917,-500.0,0.00055615,120]
[404502048,1770226530966,-250.0,0.00055615,120]
[404502049,1770226531017,-763.38752294,0.00055615,30]
[404502050,1770226531066,-566.62,0.00055616,120]
[404502051,1770226531120,-566.62,0.00056438,120]
[404502052,1770226531167,-150.0,0.00057259,120]
[404502053,1770226531210,-150.0,0.00057259,120]
[404502054,1770226531253,-200.0,0.00057259,120]
[404502055,1770226531298,-566.62,0.0005726,120]
[404502056,1770226531346,-566.62,0.00058082,120]
[404502057,1770226531396,-4539.42490816,0.00058904,90]
[404502058,1770226531443,-857.3,0.00058904,120]
[404502059,1770226531490,-1746.55,0.00058904,120]
[404502060,1770226531537,-566.62,0.00058904,120]
[404502061,1770226531578,-500.0,0.00059,120]
[404502062,1770226531620,-255.0,0.00059039,120]
[404502063,1770226531663,-200.0,0.00059338,120]
[404502064,1770226531706,-152.0,0.000595,120]
[404502065,1770226531748,-255.0,0.00059535,120]
[404502066,1770226531793,-798.61,0.00059726,120]
[404502067,1770226531834,-500.0,0.00059726,120]
[404502068,1770226531876,-200.0,0.00059726,120]
[404502069,1770226531917,-580.49,0.00059726,120]
[404502070,1770226531958,-844.68,0.00059726,120]
[404502071,1770226532109,-500.0,0.00059726,120]
[404502072,1770226532151,-500.0,0.00059726,55]
[404502073,1770226532190,-500.0,0.00059726,120]
[404502074,1770226532229,-547.77315641,0.00059726,120]
[404502075,1770226532269,-1306.45,0.00059726,30]
[404502076,1770226532310,-943.85,0.00059726,120]
[404502077,1770226532350,-500.0,0.00059726,120]
[404502078,1770226532392,-646.66,0.00059726,120]
[404502079,1770226532431,-500.0,0.00059726,120]
[404502080,1770226532472,-3071.68,0.00059726,120]
[404502081,1770226532510,-1992.44,0.00059726,120]
[404502082,1770226532548,-500.0,0.00059726,120]
[404502083,1770226532584,-500.0,0.00059726,120]
[404502084,1770226532623,-537.14,0.00059726,120]
[404502085,1770226532661,-500.0,0.00059726,120]
[404502086,1770226532698,-2360.49,0.00059726,120]
[404502087,1770226532736,-500.0,0.00059726,120]
[404502088,1770226532774,-1399.55,0.00059726,120]
[404502089,1770226532811,-500.0,0.00059726,120]
[404502090,1770226532849,-704.04,0.00059726,120]
[404502091,1770226532888,-500.0,0.00059726,120]
[404502092,1770226532927,-560.79,0.00059726,120]
[404502093,1770226532964,-746.61,0.00059726,120]
[404502094,1770226533003,-1400.35,0.00059726,120]
[404502095,1770226533042,-500.0,0.00059726,120]
[404502096,1770226533081,-5948.45,0.00059726,120]
[404502097,1770226533120,-861.03,0.00059726,120]
[404502098,1770226533158,-670.83,0.00059726,120]
[404502099,1770226533196,-500.0,0.00059726,120]
[404502100,1770226533232,-500.0,0.00059726,120]
[404502101,1770226533267,-500.0,0.00059726,120]
[404502102,1770226533303,-12762.41,0.00059726,90]
[404502103,1770226533339,-857.3,0.00059726,120]
[404502104,1770226533376,-1746.55,0.00059726,120]
[404502105,1770226533413,-566.62,0.00059726,120]
[404502106,1770226533450,-7450.69847862,0.00059826,30]
[404502107,1770226533486,-1000.0,0.00059999,120]
[404502108,1770226533523,-1000.0,0.0006,120]
[404502109,1770226533559,-153.585,0.0006,60]
[404502110,1770226533595,-163.17716351,0.0006,120]
[404502111,1770226533628,-1041.66666667,0.0006,30]
[404502112,1770226533664,-2749.77682637,0.0006,120]
[404502113,1770226533698,-278.32799109,0.00060265,30]
[404502114,1770226533732,-278.32799109,0.00060265,30]
[404502115,1770226533769,-798.61,0.00060547,120]
[404502116,1770226533804,-500.0,0.00060547,120]
[404502117,1770226533838,-200.0,0.00060547,120]
[404502118,1770226533872,-580.49,0.00060547,120]
[404502119,1770226533911,-844.68,0.00060547,120]
[404502120,1770226533946,-505.30446025,0.00060547,120]
[404502121,1770226533981,-500.0,0.00060547,55]
[404502122,1770226534016,-500.0,0.00060547,120]
[404502123,1770226534053,-1306.45,0.00060547,30]
[404502124,1770226534089,-943.85,0.00060547,120]
[404502125,1770226534124,-500.0,0.00060547,120]
[404502126,1770226534159,-646.66,0.00060547,120]
[404502127,1770226534193,-500.0,0.00060547,120]
[404502128,1770226534227,-3071.68,0.00060547,120]
[404502129,1770226534261,-1992.44,0.00060547,120]
[404502130,1770226534295,-500.0,0.00060547,120]
[404502131,1770226534328,-500.0,0.00060547,120]
[404502132,1770226534362,-537.14,0.00060547,120]
[404502133,1770226534395,-500.0,0.00060547,120]
[404502134,1770226534429,-2360.49,0.00060547,120]
[404502135,1770226534468,-500.0,0.00060547,120]
[404502136,1770226534504,-1399.55,0.00060547,120]
[404502137,1770226534537,-500.0,0.00060547,120]
[404502138,1770226534571,-704.04,0.00060547,120]
[404502139,1770226534606,-500.0,0.00060547,120]
[404502140,1770226534642,-560.79,0.00060547,120]
[404502141,1770226534676,-746.61,0.00060547,120]
[404502142,1770226534709,-1400.35,0.00060547,120]
[404502143,1770226534743,-639.99241071,0.00060547,120]
[404502144,1770226534779,-5948.45,0.00060547,120]
[404502145,1770226534916,-861.03,0.00060547,120]
[404502146,1770226534953,-670.83,0.00060547,120]
[404502147,1770226534990,-500.0,0.00060547,120]
[404502148,1770226535026,-500.0,0.00060547,120]
[404502149,1770226535061,-500.0,0.00060547,120]
[404502150,1770226535098,-12762.41,0.00060547,90]
[404502151,1770226535135,-857.3,0.00060547,120]
[404502152,1770226535170,-1746.55,0.00060547,120]
[404502153,1770226535205,-566.62,0.00060547,120]
[404502154,1770226535240,-7450.69847862,0.00060627,30]
[404502155,1770226535274,-500.0,0.00061,120]
[404502156,1770226535309,-152.0,0.000611,120]
[404502157,1770226535345,-798.61,0.00061369,120]
[404502158,1770226535379,-500.0,0.00061369,120]
[404502159,1770226535412,-200.0,0.00061369,120]
[404502160,1770226535445,-580.49,0.00061369,120]
[404502161,1770226535479,-844.68,0.00061369,120]
[404502162,1770226535514,-523.5304141,0.00061369,55]
[404502163,1770226535550,-500.0,0.00061369,120]
[404502164,1770226535584,-1306.45,0.00061369,30]
[404502165,1770226535621,-943.85,0.00061369,120]
[404502166,1770226535654,-500.0,0.00061369,120]
[404502167,1770226535688,-646.66,0.00061369,120]
[404502168,1770226535721,-554.0,0.00061369,120]
[404502169,1770226535754,-3071.68,0.00061369,120]
[404502170,1770226535791,-1992.44,0.00061369,120]
[404502171,1770226535824,-500.0,0.00061369,120]
[404502172,1770226535859,-500.0,0.00061369,120]
[404502173,1770226535893,-537.14,0.00061369,120]
[404502174,1770226535926,-500.0,0.00061369,120]
[404502175,1770226535960,-2360.49,0.00061369,120]
[404502176,1770226535993,-606.15220184,0.00061369,120]
[404502177,1770226536028,-1399.55,0.00061369,120]
[404502178,1770226536062,-500.0,0.00061369,120]
[404502179,1770226536096,-704.04,0.00061369,120]
[404502180,1770226536129,-500.0,0.00061369,120]
[404502181,1770226536171,-560.79,0.00061369,120]
[404502182,1770226536215,-746.61,0.00061369,120]
[404502183,1770226536259,-1400.35,0.00061369,120]
[404502184,1770226536305,-5948.45,0.00061369,120]
[404502185,1770226536349,-861.03,0.00061369,120]
[404502186,1770226536399,-670.83,0.00061369,120]
[404502187,1770226536448,-569.7945607,0.00061369,120]
[404502188,1770226536496,-500.0,0.00061369,120]
[404502189,1770226536537,-500.0,0.00061369,120]
[404502190,1770226536580,-12762.41,0.00061369,90]
[404502191,1770226536628,-857.3,0.00061369,120]
[404502192,1770226536674,-1746.55,0.00061369,120]
[404502193,1770226536714,-566.62,0.00061369,120]
[404502194,1770226536754,-151.48485151,0.00061385,60]
[404502195,1770226536800,-500.0,0.00061774,120]
[404502196,1770226536844,-179.0808329,0.0006189,120]
[404502197,1770226536889,-1000.0,0.00062,120]
[404502198,1770226536931,-798.61,0.00062191,120]
[404502199,1770226536973,-403.17167533,0.00062191,120]
[404502200,1770226537014,-200.0,0.00062191,120]
[404502201,1770226537055,-580.49,0.00062191,120]
[404502202,1770226537095,-844.68,0.00062191,120]
[404502203,1770226537135,-500.0,0.00062191,120]
[404502204,1770226537175,-1306.45,0.00062191,30]
[404502205,1770226537215,-943.85,0.00062191,120]
[404502206,1770226537254,-500.0,0.00062191,120]
[404502207,1770226537292,-646.66,0.00062191,120]
[404502208,1770226537331,-3071.68,0.00062191,120]
[404502209,1770226537372,-1992.44,0.00062191,120]
[404502210,1770226537405,-510.95311225,0.00062191,120]
[404502211,1770226537440,-500.0,0.00062191,120]
[404502212,1770226537476,-537.14,0.00062191,120]
[404502213,1770226537510,-500.0,0.00062191,120]
[404502214,1770226537547,-2360.49,0.00062191,120]
[404502215,1770226537581,-1399.55,0.00062191,120]
[404502216,1770226537615,-355.137002,0.00062191,120]
[404502217,1770226537800,-704.04,0.00062191,120]
[404502218,1770226537837,-500.0,0.00062191,120]
[404502219,1770226537874,-560.79,0.00062191,120]
[404502220,1770226537908,-746.61,0.00062191,120]
[404502221,1770226537942,-1400.35,0.00062191,120]
[404502222,1770226537979,-5948.45,0.00062191,120]
[404502223,1770226538014,-861.03,0.00062191,120]
[404502224,1770226538051,-670.83,0.00062191,120]
[404502225,1770226538087,-500.0,0.00062191,120]
[404502226,1770226538124,-500.0,0.00062191,120]
[404502227,1770226538159,-12762.41,0.00062191,90]
[404502228,1770226538193,-857.3,0.00062191,120]
[404502229,1770226538229,-1746.55,0.00062191,120]
[404502230,1770226538264,-566.62,0.00062191,120]
[404502231,1770226538300,-409.205,0.00062384,120]
[404502232,1770226538335,-255.0,0.00062512,120]
[404502233,1770226538373,-992.70662951,0.00062548,120]
[404502234,1770226538409,-152.0,0.000627,120]
[404502235,1770226538444,-500.0,0.00063,120]
[404502236,1770226538480,-166.25,0.00063,30]
[404502237,1770226538516,-798.61,0.00063013,120]
[404502238,1770226538551,-200.0,0.00063013,120]
[404502239,1770226538587,-580.49,0.00063013,120]
[404502240,1770226538622,-844.68,0.00063013,120]
[404502241,1770226538655,-500.0,0.00063013,120]
[404502242,1770226538689,-1306.45,0.00063013,30]
[404502243,1770226538721,-943.85,0.00063013,120]
[404502244,1770226538753,-500.0,0.00063013,120]
[404502245,1770226538790,-646.66,0.00063013,120]
[404502246,1770226538822,-3071.68,0.00063013,120]
[404502247,1770226538858,-1992.44,0.00063013,120]
[404502248,1770226538893,-500.0,0.00063013,120]
[404502249,1770226538927,-537.14,0.00063013,120]
[404502250,1770226538961,-500.0,0.00063013,120]
[404502251,1770226538995,-2360.49,0.00063013,120]
[404502252,1770226539032,-1399.55,0.00063013,120]
[404502253,1770226539068,-704.04,0.00063013,120]
[404502254,1770226539105,-210.54146687,0.00063013,120]
[404502255,1770226539143,-560.79,0.00063013,120]
[404502256,1770226539177,-746.61,0.00063013,120]
[404502257,1770226539214,-1400.35,0.00063013,120]
[404502258,1770226539252,-5948.45,0.00063013,120]
[404502259,1770226539289,-861.03,0.00063013,120]
[404502260,1770226539337,-670.83,0.00063013,120]
[404502261,1770226539374,-500.0,0.00063013,120]
[404502262,1770226539410,-500.0,0.00063013,120]
[404502263,1770226539444,-12762.41,0.00063013,90]
[404502264,1770226539479,-857.3,0.00063013,120]
[404502265,1770226539517,-1746.55,0.00063013,120]
[404502266,1770226539552,-566.62,0.00063013,120]
[404502267,1770226539683,500.0,0.00055615,120]
[404502268,1770226539723,250.0,0.00055615,120]